bitfinex-derivatives/quotes_BNBF0:USTF0_20250220
["timestamp","ask_amount","ask_price","bid_price","bid_amount"]
[1740092984420,2.15375784,655.72,655.17,0.30526428]
[1740092986123,1.85,655.91,655.17,0.30526428]
[1740092986317,2.91773724,655.9,655.17,0.30526428]
[1740092986524,2.91773724,655.89,655.17,0.30526428]
[1740092986716,2.91773724,655.88,655.17,0.30526428]
[1740092986917,2.91773724,655.87,655.17,0.30526428]
[1740092987218,2.9180116,655.86,655.17,0.30526428]
[1740092987416,2.91834665,655.85,655.17,0.30526428]
[1740092987619,2.15286042,655.89,655.17,0.30526428]
[1740092987821,2.91835019,655.88,655.17,0.30526428]
[1740092988017,2.91835019,655.87,655.17,0.30526428]
[1740092988222,2.91835019,655.86,655.17,0.30526428]
[1740092988422,2.91835019,655.85,655.17,0.30526428]
[1740092988622,2.91835019,655.84,655.17,0.30526428]
[1740092988924,2.15286042,655.86,655.17,0.30526428]
[1740092989122,2.91869499,655.85,655.17,0.30526428]
[1740092989325,2.91869499,655.84,655.17,0.30526428]
[1740092989523,2.15286042,655.86,655.17,0.30526428]
[1740092989725,2.91903802,655.85,655.17,0.30526428]
[1740092990025,2.91903802,655.84,655.17,0.30526428]
[1740092990220,2.91903802,655.83,655.17,0.30526428]
[1740092990419,2.15286042,655.84,655.17,0.30526428]
[1740092990624,2.91944447,655.83,655.17,0.30526428]
[1740092990824,2.15286042,655.84,655.17,0.30526428]
[1740092991026,2.91944514,655.83,655.17,0.30526428]
[1740092991225,2.15286042,655.84,655.17,0.30526428]
[1740092991521,2.91942714,655.83,655.17,0.30526428]
[1740092991723,2.15286042,655.84,655.17,0.30526428]
[1740092991918,2.15286042,655.82,655.17,0.30526428]
[1740092993527,2.92072588,655.81,655.17,0.30526428]
[1740092993827,2.92072588,655.8,655.17,0.30526428]
[1740092994026,2.92072588,655.79,655.17,0.30526428]
[1740092994227,2.92072588,655.78,655.17,0.30526428]
[1740092994428,2.92072588,655.77,655.17,0.30526428]
[1740092994622,2.92072588,655.76,655.17,0.30526428]
[1740092994826,2.92072588,655.75,655.17,0.30526428]
[1740092995120,2.92072588,655.74,655.17,0.30526428]
[1740092995325,2.92072588,655.73,655.17,0.30526428]
[1740092995524,2.92072588,655.72,655.17,0.30526428]
[1740092995729,2.15286042,655.73,655.17,0.30526428]
[1740092995930,2.92203426,655.72,655.17,0.30526428]
[1740092996130,2.15286042,655.73,655.17,0.30526428]
[1740092997630,1.648,655.87,655.17,0.30526428]
[1740092997931,2.92363453,655.86,655.17,0.30526428]
[1740092998133,2.92363453,655.85,655.17,0.30526428]
[1740092998331,2.92363453,655.84,655.17,0.30526428]
[1740092998531,2.92363453,655.83,655.17,0.30526428]
[1740092998733,2.92363453,655.82,655.17,0.30526428]
[1740092998926,2.92363453,655.81,655.17,0.30526428]
[1740092999126,5.08061014,655.8,655.17,0.30526428]
[1740092999330,2.92363453,655.79,655.17,0.30526428]
[1740092999531,2.92363453,655.78,655.17,0.30526428]
[1740092999731,2.92363453,655.77,655.17,0.30526428]
[1740092999933,2.92363453,655.76,655.17,0.30526428]
[1740093000136,2.15697561,655.8,655.17,0.30526428]
[1740093000430,2.92455567,655.79,655.17,0.30526428]
[1740093000634,2.92455567,655.78,655.17,0.30526428]
[1740093000929,5.08153128,655.77,655.17,0.30526428]
[1740093001135,2.92455567,655.76,655.17,0.30526428]
[1740093001337,2.15697561,655.77,655.17,0.30526428]
[1740093003035,1.751,655.96,655.17,0.30526428]
[1740093003235,2.92448008,655.95,655.17,0.30526428]
[1740093003431,2.92448008,655.94,655.17,0.30526428]
[1740093003634,2.92448008,655.93,655.17,0.30526428]
[1740093003831,2.92448008,655.92,655.17,0.30526428]
[1740093004030,2.92448008,655.91,655.21,1.13152148]
[1740093004236,2.92448008,655.9,655.22,0.30524098]
[1740093004438,2.92448008,655.89,655.22,0.30524098]
[1740093004640,2.92448008,655.88,655.22,0.30524098]
[1740093004837,2.92448008,655.87,655.22,0.30524098]
[1740093005037,2.92448008,655.86,655.22,0.30524098]
[1740093005337,2.92448008,655.85,655.22,0.30524098]
[1740093005538,2.15751591,655.87,655.22,0.30524098]
[1740093005539,2.92448008,655.84,655.22,0.30524098]
[1740093005739,2.92448008,655.83,655.22,0.30524098]
[1740093005937,2.92448008,655.82,655.22,0.30524098]
[1740093006138,2.92448008,655.81,655.22,0.30524098]
[1740093006337,2.92448008,655.8,655.22,0.30524098]
[1740093006538,2.15751591,655.87,655.22,0.30524098]
[1740093006734,2.92436277,655.86,655.22,0.30524098]
[1740093006941,2.92436277,655.85,655.27,1.13152148]
[1740093007134,2.92436277,655.84,655.28,0.30521303]
[1740093007336,2.92436277,655.83,655.28,0.30521303]
[1740093007534,2.92436277,655.82,655.28,0.30521303]
[1740093007734,2.92436277,655.81,655.28,0.30521303]
[1740093007940,2.15751591,655.85,655.28,0.30521303]
[1740093008134,2.92435536,655.84,655.28,0.30521303]
[1740093008338,2.92435536,655.83,655.28,0.30521303]
[1740093008542,5.08187127,655.82,655.28,0.30521303]
[1740093008739,2.92435536,655.81,655.28,0.30521303]
[1740093008941,2.92435536,655.8,655.28,0.30521303]
[1740093009141,2.15751591,655.82,655.28,0.30521303]
[1740093009344,2.92433161,655.81,655.28,0.30521303]
[1740093009645,2.15751591,655.82,655.28,0.30521303]
[1740093009844,2.9243205,655.81,655.28,0.30521303]
[1740093010044,2.9243205,655.8,655.28,0.30521303]
[1740093010243,2.15751591,655.82,655.28,0.30521303]
[1740093010440,2.92443139,655.81,655.28,0.30521303]
[1740093010746,2.92443139,655.8,655.28,0.30521303]
[1740093010939,2.15751591,655.8,655.28,0.30521303]
[1740093012848,1.376,656.01,655.28,0.30521303]
[1740093013147,2.92469543,656.0,655.28,0.30521303]
[1740093013346,2.92469543,655.99,655.28,0.30521303]
[1740093013547,2.92469543,655.98,655.28,0.30521303]
[1740093013742,2.92469543,655.97,655.28,0.30521303]
[1740093013942,2.92469543,655.96,655.28,0.30521303]
[1740093014142,2.92469543,655.95,655.28,0.30521303]
[1740093014348,2.15766226,656.0,655.28,0.30521303]
[1740093014349,2.92469543,655.94,655.28,0.30521303]
[1740093014547,2.92469543,655.93,655.28,0.30521303]
[1740093014741,2.15766226,656.0,655.28,0.30521303]
[1740093014742,2.92469543,655.92,655.28,0.30521303]
[1740093014943,2.92469543,655.91,655.28,0.30521303]
[1740093015147,2.15766226,655.92,655.28,0.30521303]
[1740093017248,1.284,656.06,655.28,0.30521303]
[1740093017549,1.284,656.06,655.29,1.13152148]
[1740093017550,2.92303888,656.05,655.29,1.13152148]
[1740093017751,2.92303888,656.04,655.3,0.30520372]
[1740093018049,2.92303888,656.03,655.3,0.30520372]
[1740093018244,2.92303888,656.02,655.3,0.30520372]
[1740093018447,2.92303888,656.01,655.3,0.30520372]
[1740093018644,2.92303888,656.0,655.3,0.30520372]
[1740093018848,2.92303888,655.99,655.3,0.30520372]
[1740093019047,2.92303888,655.98,655.3,0.30520372]
[1740093019251,2.92303888,655.97,655.3,0.30520372]
[1740093019451,2.92303888,655.96,655.3,0.30520372]
[1740093019650,2.92303888,655.95,655.3,0.30520372]
[1740093019850,2.92303888,655.94,655.3,0.30520372]
[1740093020049,2.92303888,655.93,655.3,0.30520372]
[1740093020250,2.15636574,655.94,655.3,0.30520372]
[1740093020448,2.92207291,655.93,655.3,1.4367252]
[1740093020653,2.92210062,655.92,655.3,1.4367252]
[1740093020847,2.92210062,655.91,655.3,1.4367252]
[1740093021051,2.15636574,655.94,655.3,1.4367252]
[1740093021252,2.92213391,655.93,655.3,1.4367252]
[1740093021451,2.92213391,655.92,655.3,1.4367252]
[1740093021645,2.15636574,655.94,655.3,1.4367252]
[1740093021850,2.92185399,655.93,655.3,1.4367252]
[1740093022053,2.92185399,655.92,655.3,1.4367252]
[1740093022352,1.284,656.06,655.3,1.4367252]
[1740093022545,2.92157758,656.05,655.3,1.4367252]
[1740093022747,2.92157758,656.04,655.3,1.4367252]
[1740093022945,2.92157758,656.03,655.3,1.4367252]
[1740093023150,2.92157758,656.02,655.3,0.30520372]
[1740093023347,2.92157758,656.01,655.3,0.30520372]
[1740093023652,2.92157758,656.0,655.3,0.30520372]
[1740093023848,2.92157758,655.99,655.3,0.30520372]
[1740093024047,2.92157758,655.98,655.3,0.30520372]
[1740093024249,2.92157758,655.97,655.3,0.30520372]
[1740093024447,2.92157758,655.96,655.3,0.30520372]
[1740093024646,2.92157758,655.95,655.3,0.30520372]
[1740093024848,2.92157758,655.94,655.3,0.30520372]
[1740093025051,2.92157758,655.93,655.3,0.30520372]
[1740093025255,2.92157758,655.92,655.3,0.30520372]
[1740093025453,2.15524916,656.03,655.3,0.30520372]
[1740093025454,2.92157758,655.91,655.3,0.30520372]
[1740093025655,2.15524916,656.03,655.3,0.30520372]
[1740093025955,2.92074159,656.02,655.3,0.30520372]
[1740093026156,2.92074159,656.01,655.3,0.30520372]
[1740093026450,2.92074159,656.0,655.3,0.30520372]
[1740093026657,2.92074159,655.99,655.3,0.30520372]
[1740093026858,2.92074159,655.98,655.3,0.30520372]
[1740093027058,2.92074159,655.97,655.3,0.30520372]
[1740093027254,2.92074159,655.96,655.3,0.30520372]
[1740093027458,2.92074159,655.95,655.3,0.30520372]
[1740093027661,2.92074159,655.94,655.3,0.30520372]
[1740093027860,2.15453097,656.0,655.3,0.30520372]
[1740093027861,2.92074159,655.93,655.3,0.30520372]
[1740093028061,2.15453097,656.0,655.3,0.30520372]
[1740093028261,2.92012914,655.99,655.3,0.30520372]
[1740093028566,5.07466011,655.98,655.3,0.30520372]
[1740093028865,2.92012914,655.97,655.3,0.30520372]
[1740093029065,2.92012914,655.96,655.3,0.30520372]
[1740093029256,2.92012914,655.95,655.3,0.30520372]
[1740093029459,2.15453097,655.98,655.3,0.30520372]
[1740093029660,2.91943872,655.97,655.3,0.30520372]
[1740093029857,2.91943872,655.96,655.3,0.30520372]
[1740093030057,2.91943872,655.95,655.3,0.30520372]
[1740093030260,2.15453097,655.97,655.3,0.30520372]
[1740093030261,2.91943872,655.94,655.3,0.30520372]
[1740093030462,2.15453097,655.97,655.3,0.30520372]
[1740093031363,2.91974584,655.96,655.3,0.30520372]
[1740093031564,2.15453097,655.97,655.3,0.30520372]
[1740093031565,2.91974584,655.95,655.3,0.30520372]
[1740093031864,5.07427681,655.94,655.3,0.30520372]
[1740093032060,2.91974584,655.93,655.3,0.30520372]
[1740093032258,2.91974584,655.92,655.3,0.30520372]
[1740093032463,2.15453097,655.94,655.3,0.30520372]
[1740093032464,2.91974584,655.91,655.3,0.30520372]
[1740093032657,2.91974584,655.9,655.3,0.30520372]
[1740093032860,2.91974584,655.89,655.3,0.30520372]
[1740093033059,2.91974584,655.88,655.3,0.30520372]
[1740093033357,2.91974584,655.87,655.3,0.30520372]
[1740093033659,2.91974584,655.86,655.3,0.30520372]
[1740093033859,2.91974584,655.85,655.3,0.30520372]
[1740093034163,2.91974584,655.84,655.3,0.30520372]
[1740093034364,2.91974584,655.83,655.3,0.30520372]
[1740093034558,2.91974584,655.82,655.3,0.30520372]
[1740093034758,2.91974584,655.81,655.3,0.30520372]
[1740093034961,2.91974584,655.8,655.3,0.30520372]
[1740093035163,2.91974584,655.79,655.3,0.30520372]
[1740093035364,2.91974584,655.78,655.3,0.30520372]
[1740093035564,2.91974584,655.77,655.3,0.30520372]
[1740093035762,2.91974584,655.76,655.3,0.30520372]
[1740093035962,2.91974584,655.75,655.3,0.30520372]
[1740093036164,2.91974584,655.74,655.3,0.30520372]
[1740093036363,2.15453097,655.78,655.3,0.30520372]
[1740093036567,2.92041185,655.77,655.3,0.30520372]
[1740093036769,2.92041185,655.76,655.3,0.30520372]
[1740093036965,2.92041185,655.75,655.3,0.30520372]
[1740093037267,2.15453097,655.78,655.3,0.30520372]
[1740093037463,2.92044421,655.77,655.3,0.30520372]
[1740093037761,2.92044421,655.76,655.3,0.30520372]
[1740093037966,2.92044421,655.75,655.3,0.30520372]
[1740093038266,2.15453097,655.77,655.3,0.30520372]
[1740093038473,2.92054119,655.76,655.3,0.30520372]
[1740093038661,2.92054119,655.75,655.3,0.30520372]
[1740093038860,2.15453097,655.77,655.3,0.30520372]
[1740093039061,5.07507068,655.76,655.3,0.30520372]
[1740093039366,2.92053971,655.75,655.3,0.30520372]
[1740093039565,2.15453097,655.76,655.3,0.30520372]
[1740093039761,2.92059838,655.75,655.3,0.30520372]
[1740093039966,2.15453097,655.76,655.3,0.30520372]
[1740093040272,2.92062156,655.75,655.3,0.30520372]
[1740093040470,2.92062156,655.74,655.3,0.30520372]
[1740093040669,2.92062156,655.73,655.3,0.30520372]
[1740093040972,2.15453097,655.73,655.3,0.30520372]
[1740093042666,1.514,655.97,655.3,0.30520372]
[1740093042869,2.92089013,655.96,655.3,0.30520372]
[1740093043172,5.07586241,655.95,655.3,0.30520372]
[1740093043373,2.92089013,655.94,655.3,0.30520372]
[1740093043573,2.92089013,655.93,655.3,0.30520372]
[1740093043774,2.92089013,655.92,655.3,0.30520372]
[1740093043974,2.15497228,655.95,655.3,0.30520372]
[1740093043975,2.92089013,655.91,655.3,0.30520372]
[1740093044174,2.92089013,655.9,655.3,0.30520372]
[1740093044374,2.92089013,655.89,655.3,0.30520372]
[1740093044576,2.92089013,655.88,655.3,0.30520372]
[1740093044774,5.07586241,655.87,655.3,0.30520372]
[1740093045075,2.92089013,655.86,655.3,0.30520372]
[1740093045270,2.92089013,655.85,655.3,0.30520372]
[1740093045476,2.92089013,655.84,655.3,0.30520372]
[1740093045680,2.92089013,655.83,655.3,0.30520372]
[1740093045878,2.92089013,655.82,655.3,0.30520372]
[1740093046177,5.07586241,655.81,655.3,0.30520372]
[1740093046377,2.92089013,655.8,655.3,0.30520372]
[1740093046573,2.92089013,655.79,655.3,0.30520372]
[1740093046773,2.92089013,655.78,655.3,0.30520372]
[1740093046978,2.92089013,655.77,655.3,0.30520372]
[1740093047175,2.15497228,655.81,655.3,0.30520372]
[1740093047380,2.92092354,655.8,655.3,0.30520372]
[1740093047580,2.92092354,655.79,655.3,0.30520372]
[1740093047774,2.92092354,655.78,655.3,0.30520372]
[1740093047974,2.92092354,655.77,655.3,0.30520372]
[1740093048174,2.15497228,655.77,655.3,0.30520372]
[1740093048775,2.92113584,655.76,655.3,0.30520372]
[1740093048973,2.15497228,655.77,655.3,0.30520372]
[1740093049881,1.514,655.97,655.3,0.30520372]
[1740093050083,2.92110497,655.96,655.3,0.30520372]
[1740093050381,1.514,655.97,655.3,0.30520372]
[1740093050575,2.15511433,655.95,655.3,0.30520372]
[1740093052085,2.15511433,655.94,655.3,0.30520372]
[1740093052678,2.92139978,655.93,655.3,0.30520372]
[1740093052885,2.92139978,655.92,655.3,0.30520372]
[1740093053083,2.92139978,655.91,655.3,0.30520372]
[1740093053285,2.92139978,655.9,655.3,0.30520372]
[1740093053482,2.15511433,655.94,655.3,0.30520372]
[1740093053683,2.92152779,655.93,655.3,0.30520372]
[1740093053879,2.92152779,655.92,655.3,0.30520372]
[1740093054082,2.92152779,655.91,655.3,0.30520372]
[1740093054288,2.92152779,655.9,655.3,0.30520372]
[1740093054480,2.15511433,655.93,655.3,0.30520372]
[1740093054785,2.92164726,655.92,655.3,0.30520372]
[1740093054987,2.92164726,655.91,655.3,0.30520372]
[1740093055187,2.92164726,655.9,655.3,0.30520372]
[1740093055485,2.15511433,655.9,655.3,0.30520372]
[1740093056983,2.15511433,655.89,655.3,0.30520372]
[1740093058191,2.15511433,655.88,655.3,0.30520372]
[1740093060290,2.15511433,655.87,655.3,0.30520372]
[1740093062491,1.514,655.97,655.3,0.30520372]
[1740093063390,2.15576868,655.96,655.3,0.30520372]
[1740093064790,1.514,655.97,655.3,0.30520372]
[1740093065092,5.607,656.01,655.3,0.30520372]
[1740093066394,2.15536501,656.0,655.3,0.30520372]
[1740093066593,2.9214737,655.99,655.3,0.30520372]
[1740093066794,2.9214737,655.98,655.3,0.30520372]
[1740093067089,2.9214737,655.97,655.3,0.30520372]
[1740093067293,2.9214737,655.96,655.3,0.30520372]
[1740093067493,2.9214737,655.95,655.3,0.30520372]
[1740093067688,2.9214737,655.94,655.3,0.30520372]
[1740093067893,2.9214737,655.93,655.3,0.30520372]
[1740093068089,2.15536501,655.95,655.3,0.30520372]
[1740093068290,2.92127344,655.94,655.33,1.13535803]
[1740093068494,2.15536501,655.95,655.34,0.30518509]
[1740093068696,2.92107606,655.94,655.34,0.30518509]
[1740093068996,2.15536501,655.95,655.34,0.30518509]
[1740093069188,5.607,656.01,655.34,0.30518509]
[1740093069391,2.9210652,656.0,655.34,0.30518509]
[1740093069594,2.9210652,655.99,655.34,0.30518509]
[1740093069792,2.9210652,655.98,655.34,0.30518509]
[1740093069993,2.9210652,655.97,655.34,0.30518509]
[1740093070191,2.9210652,655.96,655.34,0.30518509]
[1740093070496,2.9210652,655.95,655.34,0.30518509]
[1740093070697,2.15472106,655.99,655.34,0.30518509]
[1740093070897,2.92060161,655.98,655.34,0.30518509]
[1740093071097,5.07509706,655.97,655.34,0.30518509]
[1740093071298,2.92060161,655.96,655.34,0.30518509]
[1740093071502,2.15449545,655.97,655.34,0.30518509]
[1740093072297,3.622,656.01,655.34,0.30518509]
[1740093072495,2.9201209,656.0,655.34,0.30518509]
[1740093072695,2.9201209,655.99,655.34,0.30518509]
[1740093072896,2.9201209,655.98,655.34,0.30518509]
[1740093073095,2.15414814,655.99,655.34,0.30518509]
[1740093073899,4.296,656.26,655.34,0.30518509]
[1740093074293,2.153176,656.25,655.34,0.30518509]
[1740093074492,2.91809811,656.24,655.34,0.30518509]
[1740093074692,2.91809811,656.23,655.34,0.30518509]
[1740093074900,2.91809811,656.22,655.34,0.30518509]
[1740093075098,2.91809811,656.21,655.34,0.30518509]
[1740093075299,2.91809811,656.2,655.34,0.30518509]
[1740093075500,2.91643772,656.19,655.34,0.30518509]
[1740093075696,2.153176,656.21,655.34,0.30518509]
[1740093075905,2.91643094,656.2,655.34,0.30518509]
[1740093076197,2.153176,656.21,655.34,0.30518509]
[1740093076501,4.296,656.26,655.34,0.30518509]
[1740093076701,2.91458884,656.25,655.34,0.30518509]
[1740093076902,2.14977704,656.24,655.34,0.30518509]
[1740093077804,2.14977704,656.24,655.4,1.13535803]
[1740093078003,2.14977704,656.24,655.42,0.30514784]
[1740093079099,4.296,656.26,655.42,0.30514784]
[1740093079704,2.14693795,656.25,655.42,0.30514784]
[1740093080903,4.296,656.26,655.42,0.30514784]
[1740093082905,2.14461503,656.25,655.42,0.30514784]
[1740093084507,4.296,656.26,655.42,0.30514784]
[1740093085207,3.635,656.26,655.42,0.30514784]
[1740093085907,3.33,656.37,655.42,0.30514784]
[1740093086109,2.90478184,656.36,655.42,0.30514784]
[1740093086307,2.90478184,656.35,655.42,0.30514784]
[1740093086508,2.90478184,656.34,655.42,0.30514784]
[1740093086808,2.14246804,656.36,655.42,0.30514784]
[1740093087002,2.9038476,656.35,655.42,0.30514784]
[1740093087201,2.9038476,656.34,655.42,0.30514784]
[1740093087502,2.14246804,656.33,655.42,0.30514784]
[1740093088302,3.33,656.37,655.42,0.30514784]
[1740093090813,1.559,656.37,655.42,0.30514784]
[1740093096607,2.13537596,656.36,655.42,0.30514784]
[1740093098509,2.13537596,656.35,655.42,0.30514784]
[1740093100608,2.13537596,656.34,655.42,0.30514784]
[1740093102209,2.13537596,656.33,655.42,0.30514784]
[1740093104315,2.13537596,656.32,655.42,0.30514784]
[1740093106214,2.13537596,656.31,655.42,0.30514784]
[1740093107512,2.13537596,656.3,655.42,0.30514784]
[1740093109311,2.13537596,656.29,655.42,0.30514784]
[1740093111512,2.13537596,656.28,655.42,0.30514784]
[1740093113921,5.03735005,656.27,655.42,0.30514784]
[1740093114120,2.13537596,656.27,655.42,0.30514784]
[1740093116017,2.13537596,656.26,655.42,0.30514784]
[1740093117724,2.13537596,656.26,655.48,1.13535803]
[1740093118023,2.13537596,656.25,655.49,0.30511525]
[1740093119523,1.342,656.37,655.49,0.30511525]
[1740093120020,2.14389922,656.36,655.49,0.30511525]
[1740093121820,2.14389922,656.35,655.49,0.30511525]
[1740093124024,2.14389922,656.34,655.49,0.30511525]
[1740093125520,2.14389922,656.33,655.49,0.30511525]
[1740093127423,2.14389922,656.32,655.49,0.30511525]
[1740093129225,2.14389922,656.31,655.49,0.30511525]
[1740093129630,1.342,656.37,655.49,0.30511525]
[1740093130024,2.91549575,656.36,655.49,0.30511525]
[1740093130231,2.91549575,656.35,655.5,1.13535803]
[1740093130431,2.91549575,656.34,655.5,1.13535803]
[1740093130628,2.91549575,656.33,655.52,0.30510129]
[1740093130829,2.91549575,656.32,655.52,0.30510129]
[1740093131029,2.91549575,656.31,655.52,0.30510129]
[1740093131228,2.91549575,656.3,655.52,0.30510129]
[1740093131433,2.91549575,656.29,655.52,0.30510129]
[1740093131632,2.91549575,656.28,655.52,0.30510129]
[1740093131829,2.91549575,656.27,655.52,0.30510129]
[1740093132135,2.91549575,656.26,655.52,0.30510129]
[1740093132435,2.91549575,656.25,655.52,0.30510129]
[1740093132636,2.91549575,656.24,655.52,0.30510129]
[1740093132836,2.91549575,656.23,655.52,0.30510129]
[1740093133040,2.91549575,656.22,655.65,1.13535803]
[1740093133237,2.91549575,656.21,655.66,0.30503614]
[1740093133433,2.15044713,656.27,655.66,0.30503614]
[1740093133434,2.91549575,656.2,655.66,0.30503614]
[1740093133735,1.342,656.37,655.66,0.30503614]
[1740093133936,2.91932615,656.36,655.66,0.30503614]
[1740093134132,2.91932615,656.35,655.66,0.30503614]
[1740093134331,2.91932615,656.34,655.66,0.30503614]
[1740093134531,2.91932615,656.33,655.66,0.30503614]
[1740093134729,2.91932615,656.32,655.66,0.30503614]
[1740093134934,2.91932615,656.31,655.66,0.30503614]
[1740093135232,2.91932615,656.3,655.66,0.30503614]
[1740093135432,2.91932615,656.29,655.66,0.30503614]
[1740093135633,2.91932615,656.28,655.66,0.30503614]
[1740093135836,2.91932615,656.27,655.66,0.30503614]
[1740093136036,2.91932615,656.26,655.66,1.44039417]
[1740093136331,2.91932615,656.25,655.66,1.44039417]
[1740093136532,2.91932615,656.24,655.66,1.44039417]
[1740093136836,2.91932615,656.23,655.66,1.44039417]
[1740093137138,2.91932615,656.22,655.66,1.44039417]
[1740093137331,2.15354099,656.27,655.66,1.44039417]
[1740093137536,2.91958877,656.26,655.66,1.44039417]
[1740093137738,2.91958877,656.25,655.66,1.44039417]
[1740093138038,2.15354099,656.26,655.66,1.44039417]
[1740093139133,1.342,656.37,655.66,0.30503614]
[1740093139134,2.15354099,656.25,655.66,0.30503614]
[1740093141239,2.15354099,656.24,655.66,0.30503614]
[1740093143035,2.15354099,656.23,655.66,0.30503614]
[1740093145041,1.342,656.37,655.66,0.30503614]
[1740093145242,2.91944086,656.36,655.66,0.30503614]
[1740093145437,2.91944086,656.35,655.66,0.30503614]
[1740093145638,2.91944086,656.34,655.66,0.30503614]
[1740093145841,2.91944086,656.33,655.66,0.30503614]
[1740093146043,2.15334821,656.35,655.66,0.30503614]
[1740093146743,2.91942922,656.34,655.66,0.30503614]
[1740093146944,2.15334821,656.34,655.66,0.30503614]
[1740093147243,2.91944996,656.33,655.66,0.30503614]
[1740093147447,2.15334821,656.34,655.66,0.30503614]
[1740093147643,2.91946816,656.33,655.66,0.30503614]
[1740093147939,2.9194695,656.32,655.66,0.30503614]
[1740093148144,2.9194695,656.31,655.66,0.30503614]
[1740093148344,2.9194695,656.3,655.66,0.30503614]
[1740093148643,2.9194695,656.29,655.66,0.30503614]
[1740093148843,2.9194695,656.28,655.66,0.30503614]
[1740093149144,2.91971556,656.27,655.66,0.30503614]
[1740093149343,2.91971556,656.26,655.66,0.30503614]
[1740093149546,2.91971556,656.25,655.66,0.30503614]
[1740093149843,5.0738579,656.24,655.66,0.30503614]
[1740093150044,2.92050969,656.23,655.66,0.30503614]
[1740093150245,2.92050969,656.22,655.66,0.30503614]
[1740093150445,2.92050969,656.21,655.66,0.30503614]
[1740093150646,2.92050969,656.2,655.66,0.30503614]
[1740093150847,2.92050969,656.19,655.66,0.30503614]
[1740093151146,5.0738579,656.18,655.66,0.30503614]
[1740093151351,2.92050969,656.17,655.66,0.30503614]
[1740093151648,2.92050969,656.16,655.66,0.30503614]
[1740093151843,2.92050969,656.15,655.66,0.30503614]
[1740093152047,2.92050969,656.14,655.66,0.30503614]
[1740093152245,2.92050969,656.13,655.66,0.30503614]
[1740093152448,2.92050969,656.12,655.66,0.30503614]
[1740093152744,2.92050969,656.11,655.66,0.30503614]
[1740093152943,2.15334821,656.18,655.66,0.30503614]
[1740093153247,2.92306033,656.17,655.66,0.30503614]
[1740093153448,5.07640854,656.16,655.66,0.30503614]
[1740093153647,2.92306033,656.15,655.66,0.30503614]
[1740093153848,2.92306033,656.14,655.66,0.30503614]
[1740093154247,1.429,656.35,655.66,0.30503614]
[1740093154744,2.92371479,656.34,655.66,0.30503614]
[1740093154944,2.92371479,656.33,655.66,0.30503614]
[1740093155147,2.92371479,656.32,655.66,0.30503614]
[1740093155349,2.92371479,656.31,655.66,0.30503614]
[1740093155548,2.92371479,656.3,655.66,0.30503614]
[1740093155750,2.92371479,656.29,655.66,0.30503614]
[1740093155945,2.92371479,656.28,655.66,0.30503614]
[1740093156250,2.92371479,656.27,655.66,0.30503614]
[1740093156446,2.92371479,656.26,655.66,0.30503614]
[1740093156651,2.92371479,656.25,655.66,0.30503614]
[1740093156843,2.92371479,656.24,655.66,0.30503614]
[1740093157048,2.92371479,656.23,655.66,0.30503614]
[1740093157248,2.92371479,656.22,655.66,0.30503614]
[1740093157446,2.92371479,656.21,655.66,0.30503614]
[1740093157648,2.92371479,656.2,655.66,0.30503614]
[1740093157849,5.08035894,656.19,655.66,0.30503614]
[1740093158047,2.15664415,656.19,655.66,0.30503614]
[1740093158747,2.92404341,656.18,655.66,0.30503614]
[1740093158956,2.92404341,656.17,655.66,0.30503614]
[1740093159255,2.15664415,656.19,655.66,0.30503614]
[1740093159456,2.15664415,656.16,655.66,0.30503614]
[1740093159656,2.923952,656.15,655.66,0.30503614]
[1740093159956,2.15664415,656.16,655.66,0.30503614]
[1740093161158,2.15664415,656.15,655.66,0.30503614]
[1740093162563,2.91784867,656.14,655.66,0.30503614]
[1740093162759,2.91784867,656.13,655.66,0.30503614]
[1740093162958,2.91784867,656.12,655.66,0.30503614]
[1740093163154,2.91784867,656.11,655.66,0.30503614]
[1740093163353,2.91784867,656.1,655.66,0.30503614]
[1740093163658,2.91784867,656.09,655.61,1.59017867]
[1740093163859,2.91784867,656.08,655.61,1.59017867]
[1740093164059,2.91784867,656.07,655.61,1.59017867]
[1740093164254,2.91784867,656.06,655.61,1.59017867]
[1740093164559,2.91784867,656.05,655.61,1.59017867]
[1740093164859,2.15664415,656.14,655.61,1.59017867]
[1740093165358,2.15664415,656.04,655.61,1.59017867]
[1740093166558,2.15664415,656.03,655.61,1.59017867]
[1740093168062,2.865,656.28,655.61,1.59017867]
[1740093168863,2.14667836,656.27,655.61,1.59017867]
[1740093170461,5.05474361,656.26,655.61,1.59017867]
[1740093170661,2.90806525,656.25,655.61,1.59017867]
[1740093170864,2.90806525,656.24,655.61,1.59017867]
[1740093171062,2.90806525,656.23,655.61,1.59017867]
[1740093171265,2.90806525,656.22,655.61,1.59017867]
[1740093171463,2.90806525,656.21,655.61,1.59017867]
[1740093171666,2.90806525,656.2,655.61,1.59017867]
[1740093171866,2.90806525,656.19,655.61,1.59017867]
[1740093172168,2.90806525,656.18,655.61,1.59017867]
[1740093172363,2.90806525,656.17,655.61,1.59017867]
[1740093172565,2.90806525,656.16,655.61,1.59017867]
[1740093172762,2.90806525,656.15,655.61,1.59017867]
[1740093172961,2.90806525,656.14,655.61,1.59017867]